Cogmind - Beta 14 @@@ ROGUE MODE // 2025.05.02 @ 13:52:45 Player: Charango24 Result: Destroyed by S-10 Pest with Light Assault Rifle Performance ------------- Evolutions (0) 0 Regions Visited (2) 400 Robots Destroyed (16) 80 Value Destroyed (497) 497 Prototype IDs (2) 40 Alien Tech Used (0) 0 Bonus (0) 0 TOTAL SCORE: 1017 Bonus ------- None Cogmind --------- Core Integrity 0/250 Matter 300/300 Energy 100/100 System Corruption 0% Temperature Cool (0) Movement Walking (120) Location -10/Mines Parts ------- > --- POWER (1) -------- (None) > --- PROPULSION (2) --- Aluminum Leg Aluminum Leg > --- UTILITY (2) ------ Medium Storage Unit Utility Shielding > --- WEAPON (2) ------- Light Assault Rifle Mining Claw > --- INVENTORY (10) --- Ion Engine Light Ion Engine Compact Wheel Improved Heat Sink Small Storage Unit Seismic Detector Medium Laser Medium Laser Rocket Launcher Peak State ------------ > --- POWER ------------ Light Nuclear Core > --- PROPULSION ------- Aluminum Leg Aluminum Leg > --- UTILITY ---------- Medium Storage Unit Utility Shielding > --- WEAPON ----------- Particle Gun Rocket Launcher > --- INVENTORY -------- Ion Engine Light Ion Engine Compact Wheel Improved Heat Sink Small Storage Unit Seismic Detector Medium Laser Medium Laser Mining Claw [Rating: 12] Favorites ----------- Power Light Nuclear Core Engine Light Ion Engine Power Core Light Nuclear Core Propulsion Aluminum Leg Leg Aluminum Leg Wheel Compact Wheel Utility Medium Storage Unit Device Improved Heat Sink Storage Medium Storage Unit Protection Utility Shielding Weapon Light Assault Rifle Energy Gun Medium Laser Ballistic Gun Light Assault Rifle Launcher Rocket Launcher Slashing Weapon Mining Claw Build | -11 -10 -10 ------- Run | Yrd Mat Min Slots Evolved . | . . . Power . | . . . Propulsion . | . . . Utility . | . . . Weapon . | . . . Parts Attached 16 | 6 5 5 Power 2 | 1 1 . Engine 1 | 1 . . Core 1 | . 1 . Reactor . | . . . Propulsion 4 | 2 2 . Treads . | . . . Leg 2 | . 2 . Wheel 2 | 2 . . Hover . | . . . Flight . | . . . Utility 4 | 1 2 1 Device 1 | . 1 . Storage 2 | 1 1 . Processor . | . . . Hackware . | . . . Protection 1 | . . 1 Artifact . | . . . Weapon 6 | 2 . 4 Energy Gun 2 | 1 . 1 Energy Cannon . | . . . Ballistic Gun 2 | 1 . 1 Ballistic Cannon . | . . . Launcher 1 | . . 1 Special Weapon . | . . . Impact Weapon . | . . . Slashing Weapon 1 | . . 1 Piercing Weapon . | . . . Special Melee Weapon . | . . . Unidentified Prototypes . | . . . Parts Lost 4 | . 2 2 Power 2 | . 1 1 Propulsion 1 | . 1 . Utility . | . . . Weapon 1 | . . 1 Highest Loss Streak 2 | . 2 1 To Critical Strikes . | . . . Average Slot Usage (%) 94 | . 84 99 Engine 4 | . 11 . Core 9 | . 1 14 Leg 19 | . 3 28 Wheel 8 | . 23 . Device 1 | . 1 1 Storage 14 | . 14 14 Protection 8 | . . 12 Energy Gun 13 | . 14 13 Ballistic Gun 13 | . 14 13 Peak Build Rating 12 | 6 11 12 Average Rating 8 | 4 6 10 On Entrance 5 | . 6 11 Naked Turns . | . . . Heaviest Build 23 | 11 19 23 Greatest Support 32 | 32 32 20 Greatest Overweight (x) 1 | . . 1 Average Overweight (x) . | . . . Largest Inventory Capacity 10 | 8 10 10 Average Capacity 9 | 7 9 10 Most Carried 10 | 5 9 10 Average Carried 8 | 2 7 9 Final Capacity 10 | 8 10 10 Final Carried 9 | 4 6 9 Class Distribution -------------------- 100% | Mutant Dominant Class ---------------- Mutant | -10/Materials Mutant | -10/Mines Resources | -11 -10 -10 ----------- Run | Yrd Mat Min Matter Collected 395 | 179 163 53 Remotely . | . . . Salvage Created 615 | . 507 108 Parts 28 | . 23 5 Haulers Intercepted . | . . . Recyclers Shooed 1 | . 1 . Parts Field Recycled . | . . . Retrieved Matter . | . . . Parts Self-Destructed . | . . . Prevented . | . . . Kills | -11 -10 -10 ------- Run | Yrd Mat Min Combat Hostiles Destroyed 14 | . 10 4 Melee 1 | . . 1 Guns 13 | . 10 3 Classes Destroyed 4 | . 3 1 Worker 1 | . 1 . Watcher 1 | . 1 . Swarmer 2 | . . 2 Grunt 12 | . 10 2 Best Kill Streak 4 | . 4 3 Combat Bots Only 4 | . 4 3 Max Kills in Single Turn 1 | . 1 1 Gunslinging . | . . . Exploded . | . . . Melee 1 | . . 1 Uniques/NPCs Destroyed . | . . . Combat | -11 -10 -10 -------- Run | Yrd Mat Min Hostile Shots Fired 68 | . 35 33 Missed 13 | . 4 9 Damage Taken 643 | . 402 241 Core 250 | . 167 83 Absorbed by Shields . | . . . Redirected to Shielding 5 | . . 5 Core Remaining (%) 100 | 100 . . Volleys Fired 55 | . 42 13 Largest 2 | . 2 2 Hottest 115 | . 70 115 Shots Fired 109 | . 84 25 Gun 109 | . 84 25 Cannon . | . . . Launcher . | . . . Special . | . . . Kinetic 49 | . 42 7 Thermal 60 | . 42 18 Explosive . | . . . Electromagnetic . | . . . Robot Hit Streak 13 | . 13 5 Robot Miss Streak 5 | . 5 4 Penetration Max . | . . . Secondary Targets 2 | . 2 . Max Gunslinging Chain 1 | . 1 . Shots Hit Robots 66 | . 52 14 Core Hits 33 | . 28 5 Critical Kills 1 | . 1 . Critical Parts Destroyed . | . . . Critical Strikes 7 | . 6 1 Burn 6 | . 5 1 Destroy 1 | . 1 . Melee Attacks 3 | . . 3 Impact . | . . . Slashing 3 | . . 3 Piercing . | . . . Sneak Attacks . | . . . Combat Hostiles . | . . . Follow-up Attacks . | . . . Damage Inflicted 787 | . 585 202 Guns 764 | . 585 179 Cannons . | . . . Explosions . | . . . Melee 22 | . . 22 Ramming 1 | . . 1 Kinetic 319 | . 267 52 Thermal 445 | . 318 127 Explosive . | . . . Electromagnetic . | . . . Impact . | . . . Slashing 22 | . . 22 Piercing . | . . . Highest Corruption . | . . . Average Corruption . | . . . Corruption Purged . | . . . Corruption Blocked . | . . . Overload Shots . | . . . Overflow Damage . | . . . Projectiles . | . . . Explosions . | . . . Melee . | . . . Knockbacks . | . . . Impact . | . . . Kinetic . | . . . Secondary . | . . . Self-Inflicted Damage . | . . . Shots . | . . . Rammed . | . . . Targets Rammed 1 | . . 1 Kicked 1 | . . 1 Crushed . | . . . Highest Temperature 400 | . 334 400 Average Temperature 118 | . 103 150 Received Heat Transfer 333 | . 243 90 Siege Activations . | . . . Robots Corrupted . | . . . Combat Hostiles . | . . . Parts Fried . | . . . Impact Corruptions . | . . . Robots Melted . | . . . Combat Hostiles . | . . . Parts Melted 1 | . 1 . Heat Transferred 1702 | . 1295 407 Parts Sabotaged . | . . . Parts Stolen . | . . . Parts Stripped . | . . . Power Chain Reactions . | . . . Alert | -11 -10 -10 ------- Run | Yrd Mat Min Peak Influence 236 | . 236 115 Initial 25 | . . 25 Average 45 | . 110 14 Maximum Alert Level 1 | . 1 . Low Security (%) 98 | 100 95 100 Level 1 1 | . 4 . Level 2 . | . . . Level 3 . | . . . Level 4 . | . . . Level 5 . | . . . High Security . | . . . Max Security . | . . . Squads Dispatched 1 | . . 1 Investigation 1 | . . 1 Extermination . | . . . Reinforcement . | . . . Assault . | . . . Garrison . | . . . Intercept . | . . . Searches Triggered . | . . . Construction Impeded . | . . . Haulers Reinforced . | . . . Active Scanning Responses . | . . . Cargo Convoy Interrupts . | . . . Stealth | -11 -10 -10 --------- Run | Yrd Mat Min Distress Signals 3 | . 3 . Communications Jammed . | . . . Distress Signals . | . . . Times Spotted 21 | . 14 7 Peak Tracking Total 5 | . 5 3 Tactical Retreats 1 | . . 1 Traps | -11 -10 -10 ------- Run | Yrd Mat Min Traps Triggered . | . . . Indirectly . | . . . Trap Hack Attempts . | . . . Triggered . | . . . Disarmed . | . . . Reprogrammed . | . . . Reused . | . . . Traps Extracted . | . . . Installed . | . . . Triggered . | . . . Machines | -11 -10 -10 ---------- Run | Yrd Mat Min Machines Disabled . | . . . Max in Single Turn . | . . . Machines Repaired . | . . . Machines Dismantled . | . . . Machines Sabotaged . | . . . Overloaded Fab Kills . | . . . Hacking | -11 -10 -10 --------- Run | Yrd Mat Min Machines Accessed 5 | . 4 1 Terminals 5 | . 4 1 Fabricators . | . . . Repair Stations . | . . . Recycling Units . | . . . Scanalyzers . | . . . Garrison Access . | . . . Total Hacks 12 | . 10 2 Successful 6 | . 6 . Failed 6 | . 4 2 Catastrophic . | . . . Database Lockouts . | . . . Manual . | . . . Terminals 12 | . 10 2 Fabricators . | . . . Repair Stations . | . . . Recycling Units . | . . . Scanalyzers . | . . . Garrison Access . | . . . Terminal Hacks 6 | . 6 . Record 2 | . 2 . Prototype ID Bank 1 | . 1 . Emergency Access Points 1 | . 1 . Locate Traps 2 | . 2 . Fabricator Hacks . | . . . Repair Station Hacks . | . . . Recycling Unit Hacks . | . . . Scanalyzer . | . . . Garrison Access Hacks . | . . . Unauthorized Hacks . | . . . Terminals . | . . . Fabricators . | . . . Repair Stations . | . . . Recycling Units . | . . . Scanalyzers . | . . . Garrison Access . | . . . Data Cores Recovered . | . . . Used . | . . . Hacking Detections 4 | . 3 1 Full Trace Events 1 | . . 1 Feedback Events . | . . . Feedback Blocked . | . . . Robot Schematics Acquired . | . . . Robots Built . | . . . Authchips . | . . . Time . | . . . Total Robot Build Rating . | . . . Part Schematics Acquired . | . . . Parts Built . | . . . Authchips . | . . . Time . | . . . Total Part Build Rating . | . . . Parts Repaired . | . . . Time . | . . . Parts Recycled . | . . . Recycled Matter . | . . . Retrieved Matter . | . . . Retrieved Components . | . . . Parts Scanalyzed . | . . . Part Schematics Acquired . | . . . Parts Damaged . | . . . Bothacking | -11 -10 -10 ------------ Run | Yrd Mat Min Used RIF Installer . | . . . Robots Hacked . | . . . Non-combat . | . . . Combat . | . . . Robot Hacks Applied . | . . . Relay Couplers Released . | . . . Fabnet Peak Effective % . | . . . Robots Rewired . | . . . Allies Hacked . | . . . Hacks Repelled . | . . . Allies | -11 -10 -10 -------- Run | Yrd Mat Min Total Allies . | . . . Largest Group . | . . . Highest-Rated Group . | . . . Highest-Rated Ally . | . . . Total Orders . | . . . Ally Attacks . | . . . Total Damage . | . . . Kills . | . . . Allies Corrupted . | . . . Allies Melted . | . . . Intel | -11 -10 -10 ------- Run | Yrd Mat Min Robot Analysis Total . | . . . Derelict Logs Recovered 1 | . . 1 Drone Launches . | . . . Drone Recoveries . | . . . Exploration | -11 -10 -10 ------------- Run | Yrd Mat Min Turns Passed 1370 | 65 457 848 Spaces Moved 960 | 53 298 609 Core 7 | 7 . . Treads . | . . . Legs 651 | . 42 609 Wheels 302 | 46 256 . Hover . | . . . Flight . | . . . Fastest Speed 50 | 50 100 120 Average Speed 113 | 93 102 120 Slowest Speed 190 | 100 120 190 Overloaded Moves . | . . . Propulsion Burnouts . | . . . Robots Hopped . | . . . Cave-ins Triggered . | . . . Exploration Rate (%) 49 | 4 51 94 Regions Visited 2 Branch Regions 1 Pre-discovered Areas . | . . . Known Exits Taken . | . . . Unknown Exits Taken 2 | 1 1 . Scrap Searched 3 | . . 3 Spaces Dug . | . . . Terrain Destroyed . | . . . Melee . | . . . Projectile . | . . . AOE . | . . . Terrain Rammed . | . . . Walls Destroyed . | . . . Machines Disabled . | . . . Actions | -11 -10 -10 --------- Run | Yrd Mat Min Total 1137 | 68 374 695 Wait 78 | . 23 55 Move 958 | 52 297 609 Hop . | . . . Pick Up 20 | 10 5 5 Fast Attach . | . . . Attach 16 | 6 5 5 Detach 5 | . 2 3 Swap . | . . . Drop 1 | . . 1 Fire 55 | . 42 13 Melee 3 | . . 3 Ram . | . . . Kick 1 | . . 1 Crush . | . . . Escape Stasis . | . . . Rewire . | . . . Trap . | . . . Miscellaneous . | . . . Route ------- -11/Scrapyard -10/Materials (discovered 2 exits: [*Mat] / *Min) -10/Mines (discovered 2 exits: [*Mat x2]) History --------- Turn | Location | Event 18 | -11/Scrapyard | Discovered new exit (range 16) 66 | -11/Scrapyard | Entered Materials 214 | -10/Materials | Discovered new exit (range 16) 300 | -10/Materials | Build established: Mutant 340 | -10/Materials | Discovered new exit (range 7) 462 | -10/Materials | Core integrity fell below 50% 523 | -10/Materials | Entered Mines 604 | -10/Mines | Discovered new exit (range 9) 675 | -10/Mines | Learned Materials terminal intel 887 | -10/Mines | Received a Rocket Launcher from a helpful Derelict 1301 | -10/Mines | Discovered new exit (range 4) 1316 | -10/Mines | Core integrity fell below 20% 1371 | -10/Mines | Destroyed by S-10 Pest with Light Assault Rifle Last Messages --------------- 01321_ G-34 Mercenary destroyed. 01331_ G-34 Mercenary overheating. 01343_ G-34 Mercenary heat spikes uncontrollably. 01343_ Kicked G-34 Mercenary. 01344_ G-34 Mercenary heat damages Heat Sink. 01344_ G-34 Mercenary overheating. 01345_ G-34 Mercenary heat spikes uncontrollably. 01345_ G-34 Mercenary overheating. 01346_ G-34 Mercenary heat damages Heat Sink. 01346_ G-34 Mercenary overheating. 01347_ G-34 Mercenary heat damages core (-4). 01347_ G-34 Mercenary overheating. 01349_ G-34 Mercenary destroyed. 01354_ Acquired Lgt. Assault Rifle. 01355_ Dropped Particle Gun. 01357_ Acquired 15 matter. 01359_ Acquired 23 matter. 01370_ Lgt. Nuclear Core destroyed. Map ----- +----------------------------------------------------+ | | | | | | | | | | | | | | | | | | | | | | | | | | | | | ??????????????????????????????????????????? | | ????????????????###########???????????????? | | ????????????????# #???????????????? | | ????????????????# ####????????????? | | ????????????????# #????????????? | | ????????????????# =% ## #????????????? | | ????????????????# %[<* T# #????????????? | | ????????????????# [ = ## #????????????# | | ????????????????##%######### #????????????# | | ??????????### ### #???????# #????????????# | | ?????# #???????# #??????####??# | | ????# ##@####????# #???#### ##?? | | ???# ??#s #????# #???# ### | | ???? ???# ## #????# ##### | | ??????? ??# ## ###??# | | ?????? ## ## #??# ###### #### | | ????? ##?# #????## ##?? | | ?????? ### #?????## ##? | | ??????## ### ## #??????# #? | | ???????## ????# ## #?????## #? | | ????????#????????# ## ####### #? | | ?????????????????# ## ##? | | ?????????????????## ### ##?? | | ??????????????????# #?# ###### ##??? | | ?????????????????## ### #????## ##???? | | ?????????????????# ## #?????####????? | | ?????????????????# ## #?????????????? | | ?????????????????# ### ##????????????? | | ????????????????## ### #????????##### | | ?????????######## #?# #????????# ! | | ????????## ## ### #######???# % | | ????????# ## #???# ## | | ????????# #???# #? | | ????????# ### #### #???# #? | | ????????## ####?## ##????????# #? | | ?????????####?????### ##?????????# #? | +----------------------------------------------------+ Best States ------------- Heat Dissipation 39 Energy Generation 14 Energy Capacity 160 Matter Stores 300 Matter Capacity 300 Sight Range 16 Terrain Scan Density 10 Utility Shielding 33 Evasion (%) 55 Item Schematics ----------------- None Robot Schematics ------------------ None Fabricated ------------ Nothing Alien Tech Used ----------------- None Achievements -------------- None Challenges ------------ None Game ------ Seed TargetMetafieldSpoofer Manual? 0 Play Time 00:11:07 Cumulative 16.1 hours Start 2025.05.02 @ 13:42:15 End 2025.05.02 @ 13:52:45 Sessions 1 Manual Loads 0 Difficulty Rogue Special Mode None Game No. 26 Rogue 13 Adventurer 13 Explorer 0 Win Type - Total 0 Types 0/0/0/0/0/0/0/0/0 Lore% 10 Gallery% 23 Achievement% 22 Wizard Run 0 Options --------- Layout 1 ASCII 0 Keyboard 1 Movement Numpad Keybinds 0 Fullscreen 2 Font 24/Smallcaps Map View 50x35 Zoom Use 0% Tactical HUD 1 Map Filters NONE Filters NONE Steam 1 RUN: 05eea530-e058-4c7f-b733-23343f629014